bitfinex-derivatives/quotes_ETHF0:USTF0_20250116
["timestamp","ask_amount","ask_price","bid_price","bid_amount"]
[1736987942541,2.17501942,3392.3,3392.2,3.2078]
[1736987943746,0.58959,3392.3,3392.2,3.2078]
[1736987943942,2.17501942,3393.2,3392.2,3.2078]
[1736987944139,0.58947,3393.0,3392.9,3.2078]
[1736987945348,3.19369904,3393.0,3391.7,3.2078]
[1736987945540,0.58959,3392.3,3392.2,3.2078]
[1736987945842,3.19369904,3393.0,3392.2,3.2078]
[1736987946034,0.58949,3392.9,3392.8,1.8413]
[1736987946233,0.58958,3392.4,3392.3,3.2078]
[1736987947041,0.58965,3392.0,3391.9,3.2078]
[1736987947743,3.2078,3392.8,3391.9,3.2078]
[1736987947936,0.58954,3392.7,3391.9,3.2078]
[1736987948143,0.58957,3392.5,3392.3,3.2078]
[1736987948341,3.19369904,3392.5,3392.3,3.2078]
[1736987948536,3.19369904,3392.5,3391.9,3.2078]
[1736987948843,0.58954,3392.7,3391.9,3.2078]
[1736987949141,3.2078,3392.8,3391.9,3.2078]
[1736987949346,0.58956,3392.6,3391.8,3.2078]
[1736987949543,3.2078,3392.8,3391.8,3.2078]
[1736987949750,3.2078,3392.8,3391.9,3.2078]
[1736987949952,3.2078,3392.8,3392.0,0.58965]
[1736987950247,3.2078,3392.8,3391.9,3.2078]
[1736987950444,3.2078,3392.8,3392.2,0.58961]
[1736987950841,3.2078,3392.8,3392.2,0.5896]
[1736987951046,3.2078,3392.8,3391.9,3.2078]
[1736987951349,3.2078,3392.8,3392.3,0.58958]
[1736987951548,3.2078,3392.8,3392.0,0.58964]
[1736987951740,3.2078,3392.8,3392.0,0.58965]
[1736987951939,3.2078,3392.8,3391.8,3.2078]
[1736987952139,3.2078,3392.8,3392.1,40.8]
[1736987952343,3.2078,3392.3,3392.1,40.8]
[1736987952544,3.2078,3392.3,3391.8,3.2078]
[1736987952741,3.2078,3392.3,3391.2,5.2678]
[1736987953043,3.2078,3391.5,3390.8,3.2078]
[1736987953448,0.58977,3391.3,3390.8,3.2078]
[1736987953649,0.58976,3391.4,3390.8,3.2078]
[1736987953847,3.2078,3391.4,3391.3,0.58976]
[1736987954045,3.2078,3391.8,3391.7,0.5897]
[1736987954250,3.2078,3392.2,3391.4,5.2678]
[1736987954546,3.2078,3392.2,3392.1,0.58963]
[1736987954938,2.17501942,3392.4,3392.3,0.5896]
[1736987955143,3.26918403,3392.7,3392.6,0.58954]
[1736987955548,3.62381205,3393.1,3393.0,0.58947]
[1736987955844,1.87971205,3393.1,3393.0,3.79727]
[1736987956043,0.465,3395.3,3394.2,0.58925]
[1736987956044,3.2078,3394.4,3394.2,0.58925]
[1736987956240,3.2078,3394.4,3393.2,1.4736]
[1736987956241,3.2078,3394.4,3394.0,0.58929]
[1736987956442,3.2078,3394.4,3394.2,0.58926]
[1736987956644,1.10782205,3394.8,3394.4,0.58922]
[1736987956843,0.58918,3394.7,3394.0,3.2078]
[1736987957146,3.2078,3394.6,3393.3,40.8]
[1736987957349,3.2078,3394.2,3393.3,40.8]
[1736987957647,3.2078,3393.8,3393.4,0.58939]
[1736987957947,3.2078,3393.8,3393.3,40.8]
[1736987958448,3.2078,3394.7,3393.6,3.2078]
[1736987958748,3.2078,3394.3,3394.2,0.58925]
[1736987959046,3.2078,3394.3,3393.4,0.4758]
[1736987959246,3.2078,3393.5,3393.2,2.06]
[1736987959441,3.2078,3393.5,3392.2,10.615]
[1736987959641,4.66696904,3394.0,3392.2,10.615]
[1736987959642,3.2078,3392.5,3392.2,10.615]
[1736987959940,3.2078,3392.5,3392.4,0.58957]
[1736987960745,3.2078,3393.0,3392.9,0.58949]
[1736987961246,3.2078,3393.5,3393.4,0.5894]
[1736987961451,3.2078,3393.5,3393.2,0.58944]
[1736987961748,3.2078,3393.5,3393.1,2.06]
[1736987961956,0.58941,3393.4,3393.1,2.06]
[1736987962141,3.2078,3393.5,3393.1,2.06]
[1736987962344,3.2078,3393.5,3392.3,0.473]
[1736987962544,3.2078,3392.7,3392.2,5.18588701]
[1736987962748,3.2078,3392.7,3392.6,0.58954]
[1736987963046,3.2078,3392.7,3392.6,40.8]
[1736987963747,3.2078,3392.7,3392.6,0.58954]
[1736987964148,3.2078,3392.7,3392.6,46.38954]
[1736987964342,3.2078,3393.3,3393.2,0.58944]
[1736987964940,3.2078,3393.7,3393.2,5.0]
[1736987965143,3.2078,3393.7,3393.6,0.58937]
[1736987965443,3.2078,3393.7,3392.3,2.06]
[1736987965639,3.2078,3393.1,3392.3,2.06]
[1736987965847,3.2078,3392.7,3392.6,41.38954]
[1736987966055,3.2078,3393.1,3392.8,0.5895]
[1736987966247,3.2078,3393.1,3392.8,0.58949]
[1736987966551,3.79727,3393.1,3392.7,0.58952]
[1736987966742,3.2078,3393.1,3392.9,0.58949]
[1736987967048,3.2078,3393.5,3393.4,0.5894]
[1736987967451,3.2078,3393.5,3392.4,1.47392]
[1736987967642,3.2078,3393.1,3393.0,0.58947]
[1736987967848,3.2078,3393.5,3392.6,1.47386]
[1736987968152,3.2078,3393.2,3393.1,0.58946]
[1736987968354,3.2078,3393.2,3392.3,5.25369904]
[1736987968545,3.2078,3392.9,3392.8,0.58949]
[1736987969054,0.58931,3394.0,3393.6,0.58937]
[1736987969055,3.2078,3393.7,3393.6,0.58937]
[1736987969353,3.2078,3393.7,3393.0,40.8]
[1736987969743,3.2078,3393.7,3393.6,0.58937]
[1736987969949,3.2078,3393.7,3393.0,40.8]
[1736987970150,3.2078,3393.3,3393.2,0.58943]
[1736987970347,3.2078,3393.3,3393.0,40.8]
[1736987970348,3.2078,3393.3,3393.1,0.58945]
[1736987970654,3.2078,3393.3,3392.4,1.47394]
[1736987970655,0.58944,3393.2,3392.9,0.58949]
[1736987970853,3.2078,3393.3,3393.1,0.58945]
[1736987971046,3.2078,3393.3,3392.5,40.8]
[1736987971250,3.2078,3392.9,3392.8,0.58951]
[1736987974259,3.2078,3393.7,3392.8,8.19369904]
[1736987974449,5.45205806,3394.2,3394.1,0.58928]
[1736987974657,8.65985806,3394.2,3394.1,40.8]
[1736987974949,0.58934,3393.8,3393.3,0.58941]
[1736987975144,3.2078,3393.4,3392.5,3.2078]
[1736987975553,3.79721,3393.4,3393.0,0.58947]
[1736987975767,3.2078,3393.4,3392.6,40.8]
[1736987975952,3.2078,3393.4,3393.1,0.58946]
[1736987976257,3.79721,3393.4,3393.0,0.58947]
[1736987976553,3.2078,3393.4,3392.6,40.8]
[1736987976750,0.4627,3393.7,3392.0,3.2078]
[1736987976751,3.2078,3392.7,3392.0,3.2078]
[1736987976958,3.2078,3392.7,3392.4,0.58957]
[1736987977351,3.79733,3392.7,3392.4,0.58957]
[1736987977551,3.79733,3392.7,3392.1,40.8]
[1736987977552,0.58961,3392.2,3392.1,40.8]
[1736987977756,3.2078,3392.2,3390.3,3.49486]
[1736987977950,3.2078,3392.2,3390.0,3.6727]
[1736987977951,3.2078,3390.7,3390.1,2.02]
[1736987978253,0.58975,3391.5,3391.0,0.58982]
[1736987978452,3.19369904,3391.9,3390.2,1.47491]
[1736987978453,3.2078,3391.8,3391.4,0.58974]
[1736987978651,0.5897,3391.7,3391.2,0.58978]
[1736987978852,3.2078,3391.3,3390.4,1.47482]
[1736987979251,3.2078,3391.4,3391.2,0.58978]
[1736987979456,3.2078,3391.4,3390.4,1.47482]
[1736987979650,3.2078,3391.5,3390.4,1.47482]
[1736987979855,6.04178806,3391.6,3391.2,0.58978]
[1736987980054,3.2078,3391.3,3391.2,0.58978]
[1736987980260,3.2078,3391.3,3390.5,1.47478]
[1736987980261,13.17043889,3391.3,3390.5,1.47478]
[1736987980559,13.17043889,3391.3,3391.2,0.58978]
[1736987980947,0.44262846,3391.3,3391.2,0.58978]
[1736987981756,0.44262846,3391.3,3391.2,5.58978]
[1736987982155,10.4566083,3391.3,3391.2,5.58978]
[1736987982354,10.4566083,3391.3,3391.2,8.79758]
[1736987983456,9.8515783,3391.3,3391.2,10.81758]
[1736987983757,4.2902817,3391.3,3391.2,10.81758]
[1736987983955,2.9315817,3391.3,3391.2,10.81758]
[1736987984155,2.9315817,3391.3,3391.2,51.61758]
[1736987984758,2.9315817,3391.3,3391.2,46.61758]
[1736987984965,5.5612966,3391.6,3391.2,46.0278]
[1736987985163,5.5612966,3391.6,3391.5,0.58973]
[1736987985557,5.5612966,3391.6,3391.5,5.58973]
[1736987985757,4.8441466,3391.6,3391.5,5.58973]
[1736987985957,4.2018666,3391.6,3391.5,5.58973]
[1736987986267,1.8774766,3391.6,3391.5,5.58973]
[1736987986458,0.44262846,3392.1,3392.0,0.58965]
[1736987986857,0.44262846,3392.1,3392.0,5.58965]
[1736987987059,0.44262846,3392.1,3392.0,46.38965]
[1736987987558,8.46e-06,3392.1,3392.0,46.38965]
[1736987987758,4.72049813,3392.2,3392.1,0.58963]
[1736987987954,7.99615449,3393.1,3392.0,45.8]
[1736987988152,7.99615449,3393.1,3393.0,0.58947]
[1736987988358,7.99615449,3393.1,3393.0,2.54847]
[1736987989060,0.44239399,3393.1,3393.0,43.34847]
[1736987991559,3.2078,3393.7,3393.6,0.58937]
[1736987993569,3.2078,3393.7,3393.5,0.58938]
[1736987993864,3.2078,3393.7,3393.0,1.959]
[1736987994161,3.2078,3393.2,3392.6,1.47386]
[1736987994366,3.2078,3393.6,3392.8,1.959]
[1736987994565,7.70585504,3393.6,3393.5,0.58939]
[1736987996559,4.49805504,3393.6,3393.5,5.58939]
[1736987996760,7.5537605,3394.5,3393.5,8.2078]
[1736987996965,7.5537605,3394.5,3394.4,0.58923]
[1736987997172,3.2078,3394.8,3394.5,0.58921]
[1736987997173,8.63358529,3394.6,3394.5,0.58921]
[1736987998276,8.63358529,3394.6,3394.4,1.896]
[1736987998467,8.63358529,3394.6,3393.8,1.896]
[1736987998657,3.2078,3394.1,3393.8,1.896]
[1736987999059,3.2078,3394.1,3394.0,0.58936]
[1736987999665,3.2078,3394.1,3393.9,0.52451694]
[1736987999876,3.2078,3394.1,3394.0,0.58936]
[1736988000364,3.2078,3394.1,3394.0,1.896]
[1736988000561,3.2078,3394.7,3394.0,7.48536]
[1736988000761,3.2078,3394.7,3394.0,1.896]
[1736988000966,6.91847736,3394.1,3394.0,0.58936]
[1736988001173,6.91847736,3394.1,3394.0,2.48536]
[1736988002069,3.2078,3394.7,3394.0,1.896]
[1736988002269,3.2078,3394.7,3394.6,0.58925]
[1736988002678,3.2078,3394.7,3394.0,1.896]
[1736988002977,3.2078,3394.7,3393.8,3.19369904]
[1736988002978,3.2078,3394.3,3394.2,0.58932]
[1736988003276,3.2078,3394.3,3393.5,1.47362]
[1736988003277,3.2078,3394.3,3393.0,1.47383]
[1736988003464,3.2078,3393.3,3393.2,0.5895]
[1736988004069,3.2078,3393.3,3393.2,41.3895]
[1736988004278,3.2078,3393.3,3391.8,3.19369904]
[1736988004572,3.2078,3392.5,3392.3,0.58964]
[1736988004778,3.2078,3392.5,3392.4,40.8]
[1736988004970,3.2078,3392.5,3392.4,41.38964]
[1736988005372,3.2078,3392.5,3392.4,40.8]
[1736988005783,3.79742,3392.5,3392.4,40.8]
[1736988005971,3.2078,3392.5,3391.3,3.19369904]
[1736988006169,0.4696,3392.8,3390.9,0.58989]
[1736988006170,3.2078,3391.7,3390.9,0.58989]
[1736988006365,3.2078,3391.0,3390.9,0.5899]
[1736988006574,3.2078,3391.0,3390.9,41.3899]
[1736988006772,3.2078,3391.0,3390.9,40.8]
[1736988007579,3.79768,3391.0,3390.9,40.8]
[1736988007785,7.96824278,3391.0,3390.9,40.8]
[1736988007973,7.37836278,3391.0,3390.9,40.8]
[1736988008979,7.8210428,3391.0,3390.9,40.8]
[1736988009479,7.8210428,3391.0,3390.9,41.3899]
[1736988009773,4.6132428,3391.0,3390.9,41.3899]
[1736988010281,3.0957328,3391.0,3390.9,46.3899]
[1736988010473,1.4833128,3391.0,3390.9,48.2859]
[1736988010672,0.44268002,3391.0,3390.9,41.3899]
[1736988010875,2e-08,3391.0,3390.9,41.3899]
[1736988011481,3.84113488,3391.1,3391.0,0.58988]
[1736988011881,2.33341488,3391.1,3391.0,5.58988]
[1736988012178,1.45762488,3391.8,3391.7,0.58976]
[1736988012385,1.45762488,3391.8,3391.7,7.48576]
[1736988012680,0.79933488,3391.8,3391.7,2.48576]
[1736988012876,0.79933488,3391.8,3391.7,43.28576]
[1736988013080,5.55340823,3392.0,3391.7,42.696]
[1736988013273,3.2078,3392.1,3391.0,5.02869904]
[1736988013473,3.2078,3391.9,3391.5,3.19369904]
[1736988013675,3.2078,3392.4,3392.3,0.58965]
[1736988013875,3.2078,3392.8,3391.6,40.8]
[1736988014071,5.55340823,3392.3,3392.2,0.58967]
[1736988014275,4.28273823,3392.3,3392.2,7.42467]
[1736988014471,2.65271823,3392.3,3392.2,7.42467]
[1736988014778,1.04688823,3392.3,3392.2,7.42467]
[1736988014975,6.67594034,3393.4,3392.4,1.47409]
[1736988015270,2.72802715,3393.4,3393.3,0.58948]
[1736988015479,1.81835715,3393.4,3393.3,2.42448]
[1736988015680,7.79430319,3394.2,3394.1,0.58934]
[1736988016278,7.79430319,3394.2,3394.1,41.38934]
[1736988017183,3.32434243,3394.7,3394.6,0.58925]
[1736988017379,3.32434243,3394.7,3394.6,2.42425]
[1736988017577,3.32434243,3394.7,3394.6,1.835]
[1736988017978,3.32434243,3394.7,3394.6,0.58925]
[1736988018181,3.2078,3394.8,3394.4,1.835]
[1736988018384,3.2078,3394.8,3394.7,0.58924]
[1736988020679,3.2078,3394.8,3394.4,1.835]
[1736988020887,3.2078,3394.8,3394.7,0.58924]
[1736988021188,3.32434243,3395.2,3395.1,0.58917]
[1736988021482,3.32434243,3395.4,3395.3,0.58913]
[1736988021786,3.32434243,3395.4,3395.3,43.22413]
[1736988022385,2.67368243,3395.4,3395.3,48.22413]
[1736988022580,2.67368243,3395.4,3395.3,43.22413]
[1736988022784,3.2078,3396.0,3395.9,0.58903]
[1736988024988,3.2078,3396.4,3395.9,0.58903]
[1736988025178,3.2078,3396.8,3396.7,0.58889]
[1736988025880,1.3521,3397.7,3396.7,0.58889]
[1736988025881,3.2078,3397.4,3396.7,40.8]
[1736988026087,3.2078,3397.4,3397.3,0.58879]
[1736988026985,3.2078,3397.4,3396.8,3.19369904]
[1736988027180,3.2078,3397.0,3396.3,3.19369904]
[1736988027490,3.2078,3396.5,3396.4,1.834]
[1736988027780,3.2078,3396.9,3396.8,0.58887]
[1736988028383,3.2078,3396.9,3396.2,1.775]
[1736988028590,3.2078,3396.3,3396.2,2.36398]
[1736988028783,3.2078,3396.8,3396.7,0.58889]
[1736988028985,3.2078,3397.4,3397.3,0.58879]
[1736988029589,3.2078,3397.4,3396.8,1.70677031]
[1736988029782,3.2078,3397.4,3397.3,0.58879]
[1736988030489,3.2078,3397.4,3396.9,1.774]
[1736988030689,3.2078,3397.4,3397.3,0.58879]
[1736988031984,3.2078,3397.4,3397.3,0.07880722]
[1736988032187,3.2078,3397.4,3397.3,0.58879]
[1736988032687,3.2078,3397.4,3396.1,2.94498]
[1736988032688,3.2078,3397.4,3396.4,3.19369904]
[1736988032889,3.2078,3397.0,3396.4,3.19369904]
[1736988033085,3.2078,3396.6,3396.5,0.58893]
[1736988033290,0.58893,3396.5,3395.9,4.96769904]
[1736988033485,3.2078,3396.0,3395.4,3.19369904]
[1736988033788,3.2078,3395.9,3395.4,4.96769904]
[1736988034088,3.2078,3396.7,3395.5,3.2078]
[1736988034291,3.2078,3397.4,3397.3,0.58877]
[1736988034589,3.2078,3397.4,3396.6,1.774]
[1736988034788,3.2078,3397.4,3397.3,0.58879]
[1736988037588,3.2078,3397.4,3397.3,41.38879]
[1736988037789,3.2078,3397.4,3397.3,40.8]
[1736988037990,3.2078,3397.4,3396.9,3.19369904]
[1736988038295,3.2078,3397.4,3397.3,0.58879]
[1736988038494,3.2078,3397.4,3397.3,41.38879]
[1736988039790,3.2078,3397.4,3397.3,40.8]
[1736988039989,3.2078,3397.4,3396.9,3.19369904]
[1736988040189,3.79665,3397.0,3396.7,0.58888]
[1736988040390,3.2078,3397.0,3396.9,0.58886]
[1736988040792,3.2078,3397.0,3396.9,5.55655904]
[1736988040993,0.4844,3397.3,3397.2,0.5888]
[1736988041197,3.2078,3397.4,3397.3,0.58879]
[1736988042790,3.2078,3397.4,3397.3,41.38879]
[1736988046393,0.4468,3398.4,3397.3,40.8]
[1736988046394,3.2078,3397.9,3397.3,40.8]
[1736988046595,3.2078,3397.9,3397.8,0.5887]
[1736988046809,3.2078,3398.3,3398.2,0.58863]
[1736988047698,3.2078,3398.3,3397.1,3.18403]
[1736988047897,0.4468,3398.4,3397.1,3.18403]
[1736988047898,3.2078,3397.6,3397.1,3.18403]
[1736988048102,3.2078,3397.6,3397.5,0.58875]
[1736988048404,3.2078,3397.6,3396.2,2.8284122]
[1736988048697,3.2078,3396.4,3395.6,2.8284122]
[1736988048894,3.2078,3396.0,3395.9,0.58903]
[1736988049089,0.4667,3396.3,3396.2,0.58898]
[1736988049297,0.4667,3396.3,3395.9,2.8284122]
[1736988049298,3.2078,3396.8,3396.7,0.58889]
[1736988050396,3.2078,3396.8,3396.4,1.711]
[1736988050600,3.2078,3396.8,3395.9,2.8284122]
[1736988050807,3.2078,3396.8,3396.4,0.58893]
[1736988050808,0.58891,3396.6,3396.4,0.58893]
[1736988051000,3.2078,3396.8,3395.9,2.8284122]
[1736988051297,0.58907,3395.7,3395.4,0.5891]
[1736988051501,3.2078,3395.5,3394.8,1.47306]
[1736988051697,3.2078,3395.5,3395.4,0.58912]
[1736988052005,3.2078,3395.5,3395.1,3.21395782]
[1736988052199,3.6683,3395.6,3395.5,0.5891]
[1736988052800,3.2078,3395.6,3395.5,0.5891]
[1736988053102,3.2078,3396.3,3396.2,0.58898]
[1736988053604,3.2078,3396.3,3396.2,41.38898]
[1736988053791,0.4605,3396.8,3396.2,41.38898]
[1736988053994,0.4605,3396.8,3396.4,3.21395782]
[1736988054198,0.4605,3396.8,3396.7,0.58889]
[1736988054399,3.2078,3397.6,3396.4,3.21395782]
[1736988054599,3.2078,3397.6,3396.5,1.4723]
[1736988054799,3.2078,3397.6,3397.5,0.58875]
[1736988054999,3.2078,3397.6,3397.4,0.58876]
[1736988055199,3.2078,3397.6,3396.4,3.21395782]
[1736988055200,3.79654,3397.6,3396.4,3.21395782]
[1736988055398,3.2078,3397.1,3396.4,4.68630782]
[1736988055599,3.2078,3397.1,3396.4,3.21395782]
[1736988055807,0.4759,3397.7,3396.3,0.58895]
[1736988055808,0.58893,3396.5,3396.3,0.58895]
[1736988056104,0.4759,3396.4,3396.3,0.58895]
[1736988056702,3.2078,3396.7,3396.6,0.58891]
[1736988057202,3.2078,3396.7,3396.0,1.712]
[1736988057508,3.2078,3396.7,3396.6,0.58891]
[1736988058513,3.2078,3396.7,3396.5,0.58892]
[1736988058708,0.58894,3396.5,3396.2,41.38897]
[1736988059005,3.2078,3396.7,3396.2,40.8]
[1736988059211,3.2078,3396.3,3396.2,40.8]
[1736988059507,3.2078,3396.3,3396.2,41.38898]
[1736988060312,3.2078,3396.3,3396.2,40.8]
[1736988060505,3.2078,3396.3,3396.2,41.38898]
[1736988060705,3.2078,3396.3,3396.2,0.58898]
[1736988061104,3.2078,3396.7,3396.6,0.58891]
[1736988061508,4.39687563,3396.8,3396.4,4.68629782]
[1736988061706,4.39687563,3396.8,3396.7,0.58889]
[1736988061904,4.39687563,3396.8,3396.7,43.04289]
[1736988062107,2.93984563,3396.8,3396.7,43.04289]
[1736988062416,0.79457563,3396.8,3396.7,43.04289]
[1736988062603,0.4676,3397.7,3396.7,42.454]
[1736988062604,3.2078,3397.2,3396.7,42.454]
[1736988062917,3.2078,3397.6,3397.5,0.58875]
[1736988063708,9.97368101,3398.8,3397.9,0.58868]
[1736988063709,8.71266167,3398.0,3397.9,0.58868]
[1736988063911,5.50486167,3398.0,3397.9,0.58868]
[1736988064307,4.87515167,3398.0,3397.9,41.38868]
[1736988064510,5.96062132,3398.4,3398.3,0.58861]
[1736988064707,5.43735183,3398.4,3398.3,12.01036782]
[1736988065014,0.469,3399.4,3398.3,11.42175782]
[1736988065212,0.469,3399.4,3399.0,0.58849]
[1736988065514,3.2078,3399.1,3399.0,1.653]
[1736988065819,1.05743,3399.4,3399.0,1.653]
[1736988066018,0.58844,3399.3,3399.0,1.653]
[1736988066212,0.469,3399.4,3399.0,2.24148]
[1736988066516,3.2078,3399.1,3398.4,40.8]
[1736988066711,3.79639,3398.5,3398.0,2.24167]
[1736988066903,3.79639,3398.5,3398.0,1.653]
[1736988067104,3.2078,3398.5,3398.0,1.653]
[1736988067309,3.2078,3398.1,3398.0,1.653]
[1736988067705,3.2078,3399.3,3398.0,1.653]
[1736988067911,3.2078,3399.3,3398.3,3.21395782]
[1736988068113,3.2078,3399.1,3398.8,0.58852]
[1736988068313,3.2078,3399.1,3398.9,0.5885]
[1736988068608,1.05743,3399.4,3399.0,0.58849]
[1736988068816,3.2078,3399.1,3398.9,1.653]
[1736988069017,3.2078,3399.1,3398.3,4.86695782]
[1736988069212,0.58848,3399.1,3398.5,0.58858]
[1736988069411,3.2078,3399.2,3399.1,0.58847]
[1736988072217,3.2078,3399.6,3398.9,3.21395782]
[1736988072512,0.58842,3399.5,3399.1,0.58847]
[1736988072713,3.2078,3399.2,3398.9,1.653]
[1736988072923,0.58849,3399.1,3398.9,1.653]
[1736988073123,3.2078,3399.2,3398.9,1.653]
[1736988073322,3.79626,3399.2,3398.9,2.24151]
[1736988073618,0.58848,3399.1,3398.9,1.653]
[1736988073918,0.5885,3399.0,3398.8,2.82672167]
[1736988074419,3.2078,3399.2,3398.8,2.82672167]
[1736988074718,3.2078,3399.2,3398.6,0.99210112]
[1736988074918,3.2078,3399.2,3399.1,0.58847]
[1736988075321,3.2078,3399.2,3399.1,3.41519167]
[1736988075908,0.58854,3398.8,3398.4,0.58859]
[1736988076114,3.2078,3398.7,3398.4,2.82672167]
[1736988076419,3.2078,3398.7,3398.6,0.58856]
[1736988076919,3.2078,3398.7,3398.4,2.82672167]
[1736988077118,3.2078,3398.7,3398.0,40.8]
[1736988077315,3.2078,3398.1,3397.4,2.82672167]
[1736988077515,2.82672167,3399.1,3397.4,2.82672167]
[1736988077516,3.2078,3397.6,3397.4,2.82672167]
[1736988077712,3.39385,3399.4,3397.8,0.58869]
[1736988077713,0.58865,3398.2,3397.8,0.58869]
[1736988077918,3.2078,3398.4,3398.1,2.82672167]
[1736988078520,3.2078,3398.5,3398.1,2.82672167]
[1736988078715,3.2078,3398.5,3398.1,3.41537167]
[1736988078716,0.5886,3398.4,3398.1,3.41537167]
[1736988078911,3.2078,3398.5,3397.9,1.653]
[1736988079314,3.2078,3398.5,3398.1,2.82672167]
[1736988079519,3.2078,3398.5,3398.2,0.58863]
[1736988079520,3.7964,3398.5,3398.2,0.58863]
[1736988079720,7.79430319,3398.7,3398.1,2.82672167]
[1736988079911,8.38284319,3398.7,3398.6,2.82672167]
[1736988080116,0.58856,3398.6,3398.3,0.58861]
[1736988080418,3.79636,3398.6,3398.3,0.58861]
[1736988080619,3.79636,3398.6,3397.9,0.58867]
[1736988080620,0.58865,3398.1,3397.9,0.58867]
[1736988080832,3.2078,3398.6,3397.8,4.47972167]
[1736988081122,3.2078,3398.0,3397.8,2.82672167]
[1736988081422,0.58869,3397.9,3397.6,0.58873]
[1736988081823,0.5887,3397.8,3397.5,41.38875]
[1736988082123,3.2078,3398.0,3397.5,40.8]
[1736988082624,4.5727,3398.5,3398.3,0.5886]
[1736988083020,4.5727,3398.5,3398.4,0.5886]
[1736988083223,3.2078,3398.5,3398.4,0.5886]
[1736988084027,3.2078,3398.5,3398.4,41.3886]
[1736988084417,0.58864,3398.2,3397.9,2.24167]
[1736988084616,3.2078,3398.4,3398.3,0.58861]
[1736988084821,3.2078,3398.4,3398.3,44.21533167]
[1736988085930,5.55914548,3398.6,3398.5,0.58858]
[1736988086428,5.55914548,3398.8,3398.3,43.62672167]
[1736988086623,5.55914548,3398.8,3398.7,3.41526167]
[1736988087821,3.2078,3398.9,3398.8,0.58853]
[1736988088133,3.2078,3398.9,3398.8,2.18353]
[1736988088924,3.2078,3398.9,3398.8,42.98353]
[1736988089335,3.2078,3399.4,3398.8,42.98353]
[1736988089527,3.2078,3399.4,3399.3,3.41516167]
[1736988090726,3.2078,3399.4,3399.3,3.41515167]
[1736988091526,3.33578387,3400.0,3399.4,0.58842]
[1736988091726,3.2078,3399.5,3399.3,3.41515167]
[1736988091926,3.79622,3399.5,3399.3,2.82672167]
[1736988092226,3.2078,3399.5,3399.4,0.58842]
[1736988092826,3.2078,3399.5,3399.3,2.82672167]
[1736988093230,3.2078,3399.5,3399.4,0.58842]
[1736988093732,3.2078,3399.5,3399.3,2.82672167]
[1736988093929,3.2078,3399.5,3398.9,2.82672167]
[1736988094127,3.2078,3399.0,3397.9,3.0476]
[1736988094327,3.2078,3398.4,3397.9,1.595]
[1736988094525,3.2078,3398.4,3397.9,5.01040167]
[1736988094728,3.2078,3398.0,3397.9,4.42172167]
[1736988095126,3.2078,3398.0,3397.9,5.01040167]
[1736988095529,3.2078,3398.0,3397.9,4.42172167]
[1736988095733,3.2078,3398.0,3397.9,5.01040167]
[1736988096029,3.2078,3398.0,3397.9,45.81040167]
[1736988096231,3.2078,3398.0,3397.9,45.22172167]
[1736988096431,3.2078,3398.0,3397.9,45.81040167]
[1736988096633,3.2078,3398.0,3397.9,43.62672167]
[1736988096929,0.58873,3397.6,3397.5,2.82672167]
[1736988097125,3.79653,3397.6,3397.5,2.82672167]
[1736988097326,3.79653,3397.6,3397.1,2.82672167]
[1736988097327,3.2078,3397.6,3397.1,2.82672167]
[1736988097626,5.76945167,3398.8,3396.3,3.2078]
[1736988097627,3.2078,3397.2,3396.7,2.82672167]
[1736988097821,3.2078,3397.2,3396.8,41.38886]
[1736988098024,0.58884,3397.1,3396.8,40.8]
[1736988098226,3.2078,3397.2,3396.8,40.8]
[1736988098430,1.4247,3397.7,3396.8,40.8]
[1736988098431,1.4247,3397.7,3397.1,2.82672167]
[1736988098829,0.58877,3397.5,3397.1,3.41553167]
[1736988099135,0.58878,3397.4,3397.1,2.82672167]
[1736988099328,3.2078,3397.4,3397.1,3.41553167]
[1736988099529,3.2078,3397.4,3397.2,0.5888]
[1736988099932,3.79657,3397.4,3397.1,3.41553167]
[1736988100132,3.2078,3397.4,3397.2,0.5888]
[1736988100431,3.2078,3397.4,3397.3,0.58879]
[1736988100731,3.33578387,3397.6,3397.1,2.82672167]
[1736988100732,3.33578387,3397.6,3397.4,0.58876]
[1736988100937,3.2078,3397.5,3397.4,0.58876]
[1736988101235,3.2078,3397.5,3397.3,0.58878]
[1736988101435,3.2078,3397.5,3397.4,0.58877]
[1736988102132,3.2078,3397.5,3397.1,2.82672167]
[1736988102339,3.2078,3397.5,3397.3,0.58877]
[1736988102541,3.2078,3397.5,3397.4,0.58877]
[1736988103343,3.2078,3397.5,3397.4,41.38877]
[1736988103842,3.2078,3397.5,3397.4,40.8]
[1736988104144,3.2078,3397.5,3397.2,1.595]
[1736988104437,0.5888,3397.3,3397.1,2.7736993]
[1736988104637,0.5888,3397.3,3396.9,2.18384]
[1736988104837,3.2078,3397.5,3396.9,1.595]
[1736988105034,0.58878,3397.4,3397.1,0.58881]
[1736988105337,3.33578387,3397.3,3397.1,0.58881]
[1736988105538,3.33578387,3397.3,3397.2,0.5888]
[1736988106331,6.54358387,3397.3,3396.5,4.6359]
[1736988106533,3.2078,3396.7,3396.1,2.7736993]
[1736988106734,3.2078,3396.7,3396.0,0.589]
[1736988106943,3.2078,3396.7,3396.3,2.7736993]
[1736988107135,3.33578387,3397.3,3396.3,5.9814993]
[1736988107337,3.2078,3397.6,3397.1,2.7736993]
[1736988107549,3.2078,3397.6,3397.1,3.3625093]
[1736988107844,3.2078,3397.6,3397.2,0.5888]
[1736988108038,3.2078,3397.6,3397.1,2.7736993]
[1736988108244,3.3477324,3397.3,3397.2,0.58879]
[1736988109138,3.3477324,3397.4,3397.1,2.7736993]